[Event "Titled Tuesday Blitz December 13 Late 2022"]
[White "Meduri, Aakaash"]
[Black "Bryant, Todd"]
[WhiteFideId "2032252"]
[BlackFideId "2031299"]
[WhiteElo "2113"]
[BlackElo "2350"]
[Result "0-1"]
[Round "11"]
[TimeControl "180+1"]
[Date "2022.12.14"]
[WhiteClock "0:00:02"]
[BlackClock "0:00:07"]

1. d4 {[%clk 0:02:06]}  Nf6 {[%clk 0:02:59]} 2. c4 {[%clk 0:02:00]}  g6 {[%clk 0:02:55]} 3. g3 {[%clk 0:02:00]}  Bg7 {[%clk 0:02:55]} 4. Bg2 {[%clk 0:02:00]}  O-O {[%clk 0:02:55]} 5. e4 {[%clk 0:01:57]}  d6 {[%clk 0:02:45]} 6. Ne2 {[%clk 0:01:55]}  c5 {[%clk 0:02:43]} 7. d5 {[%clk 0:01:55]}  e6 {[%clk 0:02:38]} 8. O-O {[%clk 0:01:54]}  exd5 {[%clk 0:02:37]} 9. exd5 {[%clk 0:01:47]}  Re8 {[%clk 0:02:35]} 10. Nbc3 {[%clk 0:01:47]}  Bf5 {[%clk 0:02:31]} 11. Bf4 {[%clk 0:01:41]}  a6 {[%clk 0:02:29]} 12. a4 {[%clk 0:01:40]}  Ne4 {[%clk 0:02:28]} 13. Qb3 {[%clk 0:01:38]}  Qd7 {[%clk 0:02:19]} 14. a5 {[%clk 0:01:38]}  Nxc3 {[%clk 0:01:53]} 15. Nxc3 {[%clk 0:01:39]}  Bd4 {[%clk 0:01:49]} 16. Na4 {[%clk 0:01:29]}  Qc7 {[%clk 0:01:24]} 17. Nb6 {[%clk 0:01:25]}  Nd7 {[%clk 0:01:07]} 18. Nxa8 {[%clk 0:01:22]}  Rxa8 {[%clk 0:01:08]} 19. Rfe1 {[%clk 0:01:22]}  Ne5 {[%clk 0:01:05]} 20. Bxe5 {[%clk 0:00:42]}  Bxe5 {[%clk 0:01:05]} 21. Rxe5 {[%clk 0:00:27]}  dxe5 {[%clk 0:01:03]} 22. d6 {[%clk 0:00:27]}  Qxd6 {[%clk 0:01:00]} 23. Rd1 {[%clk 0:00:27]}  Qc7 {[%clk 0:00:54]} 24. Qxb7 {[%clk 0:00:27]}  Rc8 {[%clk 0:00:40]} 25. Qxc7 {[%clk 0:00:21]}  Rxc7 {[%clk 0:00:41]} 26. Rd6 {[%clk 0:00:21]}  Be6 {[%clk 0:00:37]} 27. Rxa6 {[%clk 0:00:19]}  Bxc4 {[%clk 0:00:37]} 28. Ra8+ {[%clk 0:00:16]}  Kg7 {[%clk 0:00:38]} 29. a6 {[%clk 0:00:16]}  f5 {[%clk 0:00:32]} 30. Bb7 {[%clk 0:00:14]}  Kh6 {[%clk 0:00:24]} 31. h4 {[%clk 0:00:13]}  Rd7 {[%clk 0:00:18]} 32. Rh8 {[%clk 0:00:08]}  Rd1+ {[%clk 0:00:14]} 33. Kg2 {[%clk 0:00:08]}  Ra1 {[%clk 0:00:15]} 34. h5 {[%clk 0:00:06]}  e4 {[%clk 0:00:10]} 35. hxg6 {[%clk 0:00:05]}  Kxg6 {[%clk 0:00:11]} 36. Ra8 {[%clk 0:00:05]}  Bf1+ {[%clk 0:00:09]} 37. Kh2 {[%clk 0:00:04]}  Be2 {[%clk 0:00:09]} 38. a7 {[%clk 0:00:04]}  Bf3 {[%clk 0:00:09]} 39. Rg8+ {[%clk 0:00:04]}  Kh6 {[%clk 0:00:09]} 40. g4 {[%clk 0:00:03]}  f4 {[%clk 0:00:09]} 41. g5+ {[%clk 0:00:02]}  Kh5 {[%clk 0:00:07]} 0-1


[Site "https://www.chess.com"]

[Event "Titled Tuesday Blitz December 13 Late 2022"]
[White "Melikyan, Gnel"]
[Black "Ibarra Jerez, Jose Carlos"]
[WhiteFideId "54109990"]
[BlackFideId "2226332"]
[WhiteElo "2138"]
[BlackElo "2638"]
[Result "0-1"]
[Round "11"]
[TimeControl "180+1"]
[Date "2022.12.13"]
[WhiteClock "0:00:02"]
[BlackClock "0:00:35"]

1. e4 {[%clk 0:02:59]}  c5 {[%clk 0:02:57]} 2. Nf3 {[%clk 0:02:59]}  Nc6 {[%clk 0:02:57]} 3. Bb5 {[%clk 0:02:58]}  e6 {[%clk 0:02:57]} 4. O-O {[%clk 0:02:57]}  Nge7 {[%clk 0:02:57]} 5. Re1 {[%clk 0:02:57]}  Nd4 {[%clk 0:02:54]} 6. Nxd4 {[%clk 0:02:55]}  cxd4 {[%clk 0:02:55]} 7. c3 {[%clk 0:02:55]}  a6 {[%clk 0:02:55]} 8. Ba4 {[%clk 0:02:51]}  b5 {[%clk 0:02:54]} 9. Bb3 {[%clk 0:02:51]}  Nc6 {[%clk 0:02:55]} 10. a4 {[%clk 0:02:50]}  Rb8 {[%clk 0:02:53]} 11. axb5 {[%clk 0:02:48]}  axb5 {[%clk 0:02:54]} 12. d3 {[%clk 0:02:46]}  Bc5 {[%clk 0:02:52]} 13. Nd2 {[%clk 0:02:36]}  O-O {[%clk 0:02:41]} 14. Nf3 {[%clk 0:02:34]}  Qb6 {[%clk 0:02:38]} 15. Qe2 {[%clk 0:02:30]}  dxc3 {[%clk 0:02:32]} 16. bxc3 {[%clk 0:02:29]}  b4 {[%clk 0:02:33]} 17. c4 {[%clk 0:02:14]}  e5 {[%clk 0:02:27]} 18. Be3 {[%clk 0:02:02]}  d6 {[%clk 0:02:25]} 19. Bxc5 {[%clk 0:01:58]}  dxc5 {[%clk 0:02:11]} 20. Qb2 {[%clk 0:01:51]}  f6 {[%clk 0:02:07]} 21. Ba4 {[%clk 0:01:47]}  Bg4 {[%clk 0:02:04]} 22. Bxc6 {[%clk 0:01:45]}  Qxc6 {[%clk 0:02:05]} 23. Nd2 {[%clk 0:01:42]}  Rfd8 {[%clk 0:02:04]} 24. Qb3 {[%clk 0:01:35]}  Qd6 {[%clk 0:01:58]} 25. Re3 {[%clk 0:01:24]}  Ra8 {[%clk 0:01:57]} 26. Qb2 {[%clk 0:01:08]}  Qc6 {[%clk 0:01:35]} 27. h3 {[%clk 0:01:00]}  Rxa1+ {[%clk 0:01:32]} 28. Qxa1 {[%clk 0:00:59]}  Ra8 {[%clk 0:01:33]} 29. Qb2 {[%clk 0:00:55]}  Bh5 {[%clk 0:01:29]} 30. Nb3 {[%clk 0:00:34]}  Ra3 {[%clk 0:01:27]} 31. Rg3 {[%clk 0:00:23]}  Qd6 {[%clk 0:01:24]} 32. Kh2 {[%clk 0:00:23]}  Be8 {[%clk 0:01:22]} 33. Nc1 {[%clk 0:00:21]}  Qd4 {[%clk 0:01:06]} 34. Qe2 {[%clk 0:00:21]}  b3 {[%clk 0:00:50]} 35. Nxb3 {[%clk 0:00:04]}  Rxb3 {[%clk 0:00:48]} 36. Qa2 {[%clk 0:00:04]}  Rxd3 {[%clk 0:00:41]} 37. Qa8 {[%clk 0:00:03]}  Kf8 {[%clk 0:00:38]} 38. Rxg7 {[%clk 0:00:01]}  Kxg7 {[%clk 0:00:37]} 39. Qxe8 {[%clk 0:00:02]}  Qd7 {[%clk 0:00:35]} 0-1


[Site "https://www.chess.com"]

[Event "Titled Tuesday Blitz December 13 Late 2022"]
[White "Nakamura, Hikaru"]
[Black "Chigaev, Maksim"]
[WhiteFideId "2016192"]
[BlackFideId "4108116"]
[WhiteElo "2909"]
[BlackElo "2542"]
[Result "1-0"]
[Round "11"]
[TimeControl "180+1"]
[Date "2022.12.13"]
[WhiteClock "0:00:09"]
[BlackClock "0:00:04"]

1. c4 {[%clk 0:03:00]}  e5 {[%clk 0:02:59]} 2. a3 {[%clk 0:03:00]}  g6 {[%clk 0:02:59]} 3. b4 {[%clk 0:03:00]}  Bg7 {[%clk 0:02:59]} 4. Bb2 {[%clk 0:03:01]}  d6 {[%clk 0:02:59]} 5. g3 {[%clk 0:02:57]}  h5 {[%clk 0:02:58]} 6. h3 {[%clk 0:02:52]}  a5 {[%clk 0:02:53]} 7. b5 {[%clk 0:02:49]}  c6 {[%clk 0:02:49]} 8. Bg2 {[%clk 0:02:48]}  Ne7 {[%clk 0:02:48]} 9. Nc3 {[%clk 0:02:36]}  O-O {[%clk 0:02:30]} 10. a4 {[%clk 0:02:36]}  Re8 {[%clk 0:02:25]} 11. e3 {[%clk 0:02:31]}  d5 {[%clk 0:02:22]} 12. bxc6 {[%clk 0:02:27]}  bxc6 {[%clk 0:02:23]} 13. cxd5 {[%clk 0:02:27]}  cxd5 {[%clk 0:02:22]} 14. Nge2 {[%clk 0:02:27]}  e4 {[%clk 0:02:13]} 15. Rb1 {[%clk 0:02:24]}  Nbc6 {[%clk 0:02:13]} 16. Nb5 {[%clk 0:02:24]}  Bxb2 {[%clk 0:02:06]} 17. Rxb2 {[%clk 0:02:24]}  Ne5 {[%clk 0:02:07]} 18. O-O {[%clk 0:02:25]}  Nf3+ {[%clk 0:01:54]} 19. Kh1 {[%clk 0:02:25]}  Nc6 {[%clk 0:01:43]} 20. d3 {[%clk 0:02:19]}  exd3 {[%clk 0:01:06]} 21. Nf4 {[%clk 0:02:07]}  Nfe5 {[%clk 0:01:03]} 22. Nxd3 {[%clk 0:02:04]}  Nc4 {[%clk 0:00:57]} 23. Re2 {[%clk 0:01:59]}  h4 {[%clk 0:00:43]} 24. g4 {[%clk 0:01:59]}  Be6 {[%clk 0:00:37]} 25. Nf4 {[%clk 0:01:58]}  Nb4 {[%clk 0:00:38]} 26. Qd4 {[%clk 0:01:47]}  Rc8 {[%clk 0:00:35]} 27. Rd1 {[%clk 0:01:47]}  Qe7 {[%clk 0:00:20]} 28. Ree1 {[%clk 0:01:40]}  Red8 {[%clk 0:00:18]} 29. Re2 {[%clk 0:01:34]}  Re8 {[%clk 0:00:15]} 30. Qa1 {[%clk 0:01:30]}  Nb6 {[%clk 0:00:12]} 31. Nd4 {[%clk 0:01:12]}  Rc4 {[%clk 0:00:11]} 32. Ndxe6 {[%clk 0:01:04]}  fxe6 {[%clk 0:00:12]} 33. Qb1 {[%clk 0:01:05]}  Qf6 {[%clk 0:00:09]} 34. Qb3 {[%clk 0:00:30]}  Rec8 {[%clk 0:00:09]} 35. Red2 {[%clk 0:00:28]}  Rc1 {[%clk 0:00:09]} 36. Kg1 {[%clk 0:00:21]}  g5 {[%clk 0:00:09]} 37. Ne2 {[%clk 0:00:20]}  Rxd1+ {[%clk 0:00:08]} 38. Rxd1 {[%clk 0:00:21]}  Rc2 {[%clk 0:00:07]} 39. Bf1 {[%clk 0:00:21]}  Nc4 {[%clk 0:00:08]} 40. e4 {[%clk 0:00:15]}  Nd2 {[%clk 0:00:08]} 41. Qe3 {[%clk 0:00:15]}  Nxe4 {[%clk 0:00:08]} 42. Bg2 {[%clk 0:00:15]}  Nd6 {[%clk 0:00:05]} 43. Nd4 {[%clk 0:00:14]}  Nc4 {[%clk 0:00:04]} 44. Qe1 {[%clk 0:00:14]}  Ra2 {[%clk 0:00:03]} 45. Nxe6 {[%clk 0:00:14]}  Nc2 {[%clk 0:00:03]} 46. Qe2 {[%clk 0:00:11]}  Nb4 {[%clk 0:00:04]} 47. Qe1 {[%clk 0:00:11]}  Nc2 {[%clk 0:00:05]} 48. Qf1 {[%clk 0:00:11]}  Nb4 {[%clk 0:00:04]} 49. Nc7 {[%clk 0:00:07]}  Nd2 {[%clk 0:00:04]} 50. Qe1 {[%clk 0:00:05]}  Ne4 {[%clk 0:00:05]} 51. Nxd5 {[%clk 0:00:05]}  Nxd5 {[%clk 0:00:04]} 52. Bxe4 {[%clk 0:00:05]}  Nf4 {[%clk 0:00:05]} 53. Bd5+ {[%clk 0:00:03]}  Nxd5 {[%clk 0:00:05]} 54. Rxd5 {[%clk 0:00:04]}  Ra1 {[%clk 0:00:06]} 55. Rd1 {[%clk 0:00:04]}  Rxd1 {[%clk 0:00:06]} 56. Qxd1 {[%clk 0:00:05]}  Qe5 {[%clk 0:00:06]} 57. Qb3+ {[%clk 0:00:05]}  Kg7 {[%clk 0:00:05]} 58. Qb7+ {[%clk 0:00:05]}  Kf6 {[%clk 0:00:06]} 59. Qc6+ {[%clk 0:00:06]}  Ke7 {[%clk 0:00:06]} 60. Kg2 {[%clk 0:00:06]}  Kf7 {[%clk 0:00:06]} 61. Qc4+ {[%clk 0:00:06]}  Kf6 {[%clk 0:00:06]} 62. Kf3 {[%clk 0:00:07]}  Kg7 {[%clk 0:00:03]} 63. Qe4 {[%clk 0:00:06]}  Qf6+ {[%clk 0:00:03]} 64. Kg2 {[%clk 0:00:07]}  Qd8 {[%clk 0:00:02]} 65. Qe5+ {[%clk 0:00:07]}  Kh6 {[%clk 0:00:03]} 66. Qe6+ {[%clk 0:00:07]}  Kg7 {[%clk 0:00:03]} 67. Qe4 {[%clk 0:00:08]}  Kh6 {[%clk 0:00:03]} 68. Qb7 {[%clk 0:00:07]}  Kg6 {[%clk 0:00:03]} 69. Qb5 {[%clk 0:00:07]}  Kh6 {[%clk 0:00:03]} 70. Qc4 {[%clk 0:00:06]}  Qa8+ {[%clk 0:00:03]} 71. Kg1 {[%clk 0:00:07]}  Qd8 {[%clk 0:00:03]} 72. Qe6+ {[%clk 0:00:07]}  Kg7 {[%clk 0:00:04]} 73. Qe5+ {[%clk 0:00:07]}  Kh6 {[%clk 0:00:04]} 74. Kh2 {[%clk 0:00:07]}  Kg6 {[%clk 0:00:04]} 75. Qf5+ {[%clk 0:00:08]}  Kh6 {[%clk 0:00:04]} 76. Qe4 {[%clk 0:00:06]}  Kg7 {[%clk 0:00:04]} 77. Kg2 {[%clk 0:00:06]}  Kh6 {[%clk 0:00:04]} 78. Qc6+ {[%clk 0:00:06]}  Kg7 {[%clk 0:00:05]} 79. Qb5 {[%clk 0:00:07]}  Qa8+ {[%clk 0:00:04]} 80. Kf1 {[%clk 0:00:06]}  Qd8 {[%clk 0:00:04]} 81. Ke2 {[%clk 0:00:06]}  Kh6 {[%clk 0:00:05]} 82. Ke3 {[%clk 0:00:07]}  Qe7+ {[%clk 0:00:04]} 83. Kd4 {[%clk 0:00:07]}  Qf6+ {[%clk 0:00:05]} 84. Ke3 {[%clk 0:00:05]}  Qc3+ {[%clk 0:00:05]} 85. Qd3 {[%clk 0:00:05]}  Qe1+ {[%clk 0:00:04]} 86. Kf3 {[%clk 0:00:04]}  Qh1+ {[%clk 0:00:04]} 87. Ke2 {[%clk 0:00:05]}  Qc6 {[%clk 0:00:04]} 88. Qb3 {[%clk 0:00:05]}  Qe8+ {[%clk 0:00:02]} 89. Kd1 {[%clk 0:00:04]}  Qd7+ {[%clk 0:00:02]} 90. Kc2 {[%clk 0:00:05]}  Qc7+ {[%clk 0:00:02]} 91. Qc3 {[%clk 0:00:05]}  Qf7 {[%clk 0:00:02]} 92. f3 {[%clk 0:00:04]}  Qb7 {[%clk 0:00:01]} 93. Qf6+ {[%clk 0:00:04]}  Kh7 {[%clk 0:00:02]} 94. Qf5+ {[%clk 0:00:05]}  Kh6 {[%clk 0:00:02]} 95. Qf6+ {[%clk 0:00:05]}  Kh7 {[%clk 0:00:03]} 96. Qxg5 {[%clk 0:00:06]}  Qc6+ {[%clk 0:00:03]} 97. Kd2 {[%clk 0:00:06]}  Qxf3 {[%clk 0:00:02]} 98. Qf5+ {[%clk 0:00:06]}  Qxf5 {[%clk 0:00:02]} 99. gxf5 {[%clk 0:00:07]}  Kg7 {[%clk 0:00:03]} 100. Ke3 {[%clk 0:00:08]}  Kf6 {[%clk 0:00:04]} 101. Kf4 {[%clk 0:00:08]}  Kf7 {[%clk 0:00:04]} 102. Kg5 {[%clk 0:00:09]} 1-0


[Site "https://www.chess.com"]

[Event "Titled Tuesday Blitz December 13 Late 2022"]
[White "Oro, Faustino"]
[Black "Bogaudinov, Rushan"]
[WhiteFideId "20000197"]
[BlackFideId "4129288"]
[WhiteElo "1984"]
[BlackElo "2028"]
[Result "0-1"]
[Round "11"]
[TimeControl "180+1"]
[Date "2022.12.14"]
[WhiteClock "0:00:02"]
[BlackClock "0:00:05"]

1. e4 {[%clk 0:02:51]}  a6 {[%clk 0:02:31]} 2. d4 {[%clk 0:02:50]}  e6 {[%clk 0:02:30]} 3. Nf3 {[%clk 0:02:45]}  Be7 {[%clk 0:02:27]} 4. Bd3 {[%clk 0:02:44]}  b5 {[%clk 0:02:26]} 5. O-O {[%clk 0:02:43]}  Bb7 {[%clk 0:02:26]} 6. Qe2 {[%clk 0:02:42]}  Nf6 {[%clk 0:02:24]} 7. Rd1 {[%clk 0:02:36]}  d6 {[%clk 0:02:21]} 8. c3 {[%clk 0:02:36]}  c5 {[%clk 0:02:16]} 9. dxc5 {[%clk 0:02:34]}  dxc5 {[%clk 0:02:16]} 10. Bxb5+ {[%clk 0:02:31]}  Nbd7 {[%clk 0:02:16]} 11. Bxd7+ {[%clk 0:02:14]}  Nxd7 {[%clk 0:02:10]} 12. Ne5 {[%clk 0:02:11]}  Bc8 {[%clk 0:02:10]} 13. Bf4 {[%clk 0:01:53]}  f6 {[%clk 0:01:59]} 14. Qh5+ {[%clk 0:01:51]}  g6 {[%clk 0:01:54]} 15. Nxg6 {[%clk 0:01:48]}  hxg6 {[%clk 0:01:44]} 16. Qxh8+ {[%clk 0:01:47]}  Bf8 {[%clk 0:01:38]} 17. Bd6 {[%clk 0:01:36]}  Kf7 {[%clk 0:01:38]} 18. Bxf8 {[%clk 0:01:35]}  Qxf8 {[%clk 0:01:37]} 19. Qh7+ {[%clk 0:01:34]}  Qg7 {[%clk 0:01:37]} 20. Qxg7+ {[%clk 0:01:35]}  Kxg7 {[%clk 0:01:37]} 21. Na3 {[%clk 0:01:34]}  Nb6 {[%clk 0:01:31]} 22. Rd6 {[%clk 0:01:33]}  Rb8 {[%clk 0:01:30]} 23. b3 {[%clk 0:01:30]}  Kf7 {[%clk 0:01:21]} 24. Rad1 {[%clk 0:01:29]}  Ke7 {[%clk 0:01:21]} 25. Nc2 {[%clk 0:01:25]}  Nd5 {[%clk 0:01:18]} 26. Rc6 {[%clk 0:01:12]}  Nxc3 {[%clk 0:01:15]} 27. Rc7+ {[%clk 0:01:12]}  Ke8 {[%clk 0:01:10]} 28. Rd3 {[%clk 0:01:08]}  Nxe4 {[%clk 0:01:08]} 29. f3 {[%clk 0:00:57]}  Ng5 {[%clk 0:01:04]} 30. Ne3 {[%clk 0:00:53]}  f5 {[%clk 0:00:47]} 31. Nc4 {[%clk 0:00:52]}  Nf7 {[%clk 0:00:44]} 32. Rxc5 {[%clk 0:00:43]}  Bb7 {[%clk 0:00:40]} 33. Ne5 {[%clk 0:00:36]}  Nxe5 {[%clk 0:00:37]} 34. Rxe5 {[%clk 0:00:37]}  Ke7 {[%clk 0:00:35]} 35. Kf2 {[%clk 0:00:35]}  Rc8 {[%clk 0:00:31]} 36. Rde3 {[%clk 0:00:30]}  Rc6 {[%clk 0:00:28]} 37. h4 {[%clk 0:00:29]}  Kf6 {[%clk 0:00:27]} 38. Kg3 {[%clk 0:00:28]}  Rd6 {[%clk 0:00:24]} 39. Kh3 {[%clk 0:00:20]}  Bd5 {[%clk 0:00:23]} 40. g4 {[%clk 0:00:17]}  Rc6 {[%clk 0:00:22]} 41. Kg3 {[%clk 0:00:15]}  Rc1 {[%clk 0:00:20]} 42. h5 {[%clk 0:00:14]}  Rg1+ {[%clk 0:00:11]} 43. Kf2 {[%clk 0:00:14]}  Ra1 {[%clk 0:00:10]} 44. hxg6 {[%clk 0:00:14]}  f4 {[%clk 0:00:10]} 45. Re2 {[%clk 0:00:13]}  Rc1 {[%clk 0:00:08]} 46. Re1 {[%clk 0:00:07]}  Rc3 {[%clk 0:00:08]} 47. Rxd5 {[%clk 0:00:06]}  exd5 {[%clk 0:00:08]} 48. Re2 {[%clk 0:00:06]}  Kxg6 {[%clk 0:00:08]} 49. Rd2 {[%clk 0:00:06]}  d4 {[%clk 0:00:07]} 50. Rxd4 {[%clk 0:00:05]}  Rc2+ {[%clk 0:00:07]} 51. Ke1 {[%clk 0:00:06]}  Rxa2 {[%clk 0:00:08]} 52. Rd2 {[%clk 0:00:06]}  Ra3 {[%clk 0:00:07]} 53. Rd3 {[%clk 0:00:06]}  Ra2 {[%clk 0:00:07]} 54. Kd1 {[%clk 0:00:05]}  Kf6 {[%clk 0:00:07]} 55. Kc1 {[%clk 0:00:05]}  Ke5 {[%clk 0:00:07]} 56. Rd2 {[%clk 0:00:05]}  Ra1+ {[%clk 0:00:06]} 57. Kb2 {[%clk 0:00:06]}  Rf1 {[%clk 0:00:07]} 58. Rd3 {[%clk 0:00:07]}  a5 {[%clk 0:00:07]} 59. Kc3 {[%clk 0:00:05]}  Rc1+ {[%clk 0:00:07]} 60. Kb2 {[%clk 0:00:05]}  Rf1 {[%clk 0:00:07]} 61. g5 {[%clk 0:00:04]}  Kf5 {[%clk 0:00:07]} 62. Rd5+ {[%clk 0:00:04]}  Ke6 {[%clk 0:00:07]} 63. Rxa5 {[%clk 0:00:03]}  Rxf3 {[%clk 0:00:07]} 64. b4 {[%clk 0:00:03]}  Rg3 {[%clk 0:00:07]} 65. Kc2 {[%clk 0:00:03]}  f3 {[%clk 0:00:05]} 66. Ra3 {[%clk 0:00:03]}  Rxg5 {[%clk 0:00:04]} 67. Rxf3 {[%clk 0:00:02]}  Kd5 {[%clk 0:00:05]} 0-1


[Site "https://www.chess.com"]

[Event "Titled Tuesday Blitz December 13 Late 2022"]
[White "Osmonbekov, Talaibek"]
[Black "Buchenau, Frank"]
[WhiteFideId "2017253"]
[BlackFideId "4604350"]
[WhiteElo "2135"]
[BlackElo "2157"]
[Result "0-1"]
[Round "11"]
[TimeControl "180+1"]
[Date "2022.12.14"]
[WhiteClock "0:00:01"]
[BlackClock "0:00:15"]

1. d4 {[%clk 0:03:00]}  e6 {[%clk 0:02:59]} 2. Bf4 {[%clk 0:03:01]}  Nf6 {[%clk 0:02:59]} 3. Nc3 {[%clk 0:03:01]}  d5 {[%clk 0:02:59]} 4. e3 {[%clk 0:03:01]}  a6 {[%clk 0:02:59]} 5. Nf3 {[%clk 0:03:01]}  c5 {[%clk 0:02:59]} 6. dxc5 {[%clk 0:03:00]}  Bxc5 {[%clk 0:02:58]} 7. Bd3 {[%clk 0:03:01]}  Nc6 {[%clk 0:02:57]} 8. O-O {[%clk 0:03:02]}  O-O {[%clk 0:02:56]} 9. e4 {[%clk 0:03:02]}  d4 {[%clk 0:02:53]} 10. Ne2 {[%clk 0:03:01]}  Nh5 {[%clk 0:02:46]} 11. Bd2 {[%clk 0:02:58]}  e5 {[%clk 0:02:45]} 12. a3 {[%clk 0:02:54]}  Bg4 {[%clk 0:02:40]} 13. Ng3 {[%clk 0:02:54]}  Nf4 {[%clk 0:02:39]} 14. h3 {[%clk 0:02:38]}  Be6 {[%clk 0:02:35]} 15. Bxf4 {[%clk 0:02:19]}  exf4 {[%clk 0:02:34]} 16. Nh5 {[%clk 0:02:19]}  Bd6 {[%clk 0:02:10]} 17. Qd2 {[%clk 0:02:14]}  Qc7 {[%clk 0:02:07]} 18. Rfe1 {[%clk 0:02:03]}  f6 {[%clk 0:01:58]} 19. e5 {[%clk 0:01:29]}  Bxe5 {[%clk 0:01:38]} 20. Qe2 {[%clk 0:01:18]}  Rae8 {[%clk 0:01:24]} 21. Qe4 {[%clk 0:00:14]}  g6 {[%clk 0:01:21]} 22. Nxd4 {[%clk 0:00:09]}  Nxd4 {[%clk 0:01:12]} 23. Nxf4 {[%clk 0:00:09]}  Bxf4 {[%clk 0:00:51]} 24. Qxd4 {[%clk 0:00:10]}  Be5 {[%clk 0:00:48]} 25. Qb4 {[%clk 0:00:10]}  a5 {[%clk 0:00:45]} 26. Qb5 {[%clk 0:00:09]}  Kg7 {[%clk 0:00:22]} 27. Rad1 {[%clk 0:00:07]}  Bd7 {[%clk 0:00:19]} 28. Qb3 {[%clk 0:00:07]}  Bc6 {[%clk 0:00:19]} 29. Be4 {[%clk 0:00:06]}  Bxe4 {[%clk 0:00:18]} 30. Rxe4 {[%clk 0:00:05]}  Bh2+ {[%clk 0:00:18]} 31. Kh1 {[%clk 0:00:04]}  Rxe4 {[%clk 0:00:18]} 32. Qb5 {[%clk 0:00:04]}  Rf7 {[%clk 0:00:16]} 33. Qd5 {[%clk 0:00:03]}  Rfe7 {[%clk 0:00:16]} 34. g3 {[%clk 0:00:01]}  Bxg3 {[%clk 0:00:15]} 35. fxg3 {[%clk 0:00:01]}  Qxg3 {[%clk 0:00:15]} 0-1


[Site "https://www.chess.com"]

[Event "Titled Tuesday Blitz December 13 Late 2022"]
[White "Petrovic, Aleksa"]
[Black "Floresvillar Gonzalez, Luis Migu"]
[WhiteFideId "967629"]
[BlackFideId "5100542"]
[WhiteElo "2230"]
[BlackElo "2040"]
[Result "1-0"]
[Round "11"]
[TimeControl "180+1"]
[Date "2022.12.14"]
[WhiteClock "0:02:20"]
[BlackClock "0:02:20"]

1. d4 {[%clk 0:03:00]}  e6 {[%clk 0:03:00]} 2. c4 {[%clk 0:02:59]}  d5 {[%clk 0:02:59]} 3. Nf3 {[%clk 0:02:58]}  Be7 {[%clk 0:02:59]} 4. Nc3 {[%clk 0:02:58]}  Nf6 {[%clk 0:02:58]} 5. Bf4 {[%clk 0:02:57]}  O-O {[%clk 0:02:53]} 6. e3 {[%clk 0:02:57]}  Ne4 {[%clk 0:02:52]} 7. Qc2 {[%clk 0:02:53]}  f5 {[%clk 0:02:51]} 8. cxd5 {[%clk 0:02:52]}  exd5 {[%clk 0:02:50]} 9. Nxd5 {[%clk 0:02:52]}  Qxd5 {[%clk 0:02:43]} 10. Bc4 {[%clk 0:02:51]}  c6 {[%clk 0:02:32]} 11. Bxd5+ {[%clk 0:02:40]}  cxd5 {[%clk 0:02:31]} 12. Bxb8 {[%clk 0:02:39]}  Rxb8 {[%clk 0:02:31]} 13. O-O {[%clk 0:02:39]}  Be6 {[%clk 0:02:30]} 14. Rac1 {[%clk 0:02:36]}  Rbc8 {[%clk 0:02:29]} 15. Qa4 {[%clk 0:02:35]}  a6 {[%clk 0:02:27]} 16. Ne5 {[%clk 0:02:33]}  f4 {[%clk 0:02:25]} 17. exf4 {[%clk 0:02:24]}  Rxc1 {[%clk 0:02:22]} 18. Rxc1 {[%clk 0:02:23]}  Rxf4 {[%clk 0:02:23]} 19. Qe8+ {[%clk 0:02:22]}  Rf8 {[%clk 0:02:20]} 20. Qxe7 {[%clk 0:02:20]}  Nxf2 {[%clk 0:02:20]} 1-0


[Site "https://www.chess.com"]

[Event "Titled Tuesday Blitz December 13 Late 2022"]
[White "Polster, Christian"]
[Black "Brown, Andrew"]
[WhiteFideId "12965081"]
[BlackFideId "3206513"]
[WhiteElo "2195"]
[BlackElo "2245"]
[Result "1/2-1/2"]
[Round "11"]
[TimeControl "180+1"]
[Date "2022.12.14"]
[WhiteClock "0:00:08"]
[BlackClock "0:00:04"]

1. e4 {[%clk 0:03:00]}  e5 {[%clk 0:02:59]} 2. Nf3 {[%clk 0:02:59]}  Nc6 {[%clk 0:03:00]} 3. Bc4 {[%clk 0:03:00]}  Bc5 {[%clk 0:03:00]} 4. c3 {[%clk 0:02:54]}  d6 {[%clk 0:03:00]} 5. d4 {[%clk 0:02:52]}  exd4 {[%clk 0:02:59]} 6. cxd4 {[%clk 0:02:53]}  Bb6 {[%clk 0:02:59]} 7. O-O {[%clk 0:02:28]}  Bg4 {[%clk 0:02:52]} 8. Be3 {[%clk 0:01:46]}  Qf6 {[%clk 0:02:38]} 9. d5 {[%clk 0:00:49]}  Ne5 {[%clk 0:02:34]} 10. Bb5+ {[%clk 0:00:47]}  c6 {[%clk 0:02:21]} 11. dxc6 {[%clk 0:00:43]}  bxc6 {[%clk 0:02:18]} 12. Be2 {[%clk 0:00:41]}  Bxf3 {[%clk 0:01:54]} 13. Bxf3 {[%clk 0:00:40]}  Nxf3+ {[%clk 0:01:54]} 14. Qxf3 {[%clk 0:00:38]}  Qxf3 {[%clk 0:01:38]} 15. gxf3 {[%clk 0:00:37]}  Bxe3 {[%clk 0:01:36]} 16. fxe3 {[%clk 0:00:38]}  Ne7 {[%clk 0:01:30]} 17. Nc3 {[%clk 0:00:37]}  f5 {[%clk 0:01:21]} 18. Rad1 {[%clk 0:00:19]}  O-O-O {[%clk 0:01:17]} 19. Kf2 {[%clk 0:00:15]}  Rhf8 {[%clk 0:01:12]} 20. Ke2 {[%clk 0:00:14]}  Kc7 {[%clk 0:01:10]} 21. Rc1 {[%clk 0:00:12]}  fxe4 {[%clk 0:01:03]} 22. Nxe4 {[%clk 0:00:13]}  h6 {[%clk 0:01:01]} 23. Rfd1 {[%clk 0:00:12]}  Nf5 {[%clk 0:00:57]} 24. Rc3 {[%clk 0:00:11]}  Rfe8 {[%clk 0:00:54]} 25. Kf2 {[%clk 0:00:10]}  Re5 {[%clk 0:00:44]} 26. Rdc1 {[%clk 0:00:10]}  c5 {[%clk 0:00:36]} 27. b4 {[%clk 0:00:10]}  Rde8 {[%clk 0:00:35]} 28. bxc5 {[%clk 0:00:09]}  d5 {[%clk 0:00:34]} 29. Nd6 {[%clk 0:00:07]}  Nxd6 {[%clk 0:00:16]} 30. cxd6+ {[%clk 0:00:08]}  Kxd6 {[%clk 0:00:16]} 31. Rc6+ {[%clk 0:00:09]}  Ke7 {[%clk 0:00:15]} 32. Rc7+ {[%clk 0:00:09]}  Kf8 {[%clk 0:00:15]} 33. R1c3 {[%clk 0:00:07]}  d4 {[%clk 0:00:15]} 34. exd4 {[%clk 0:00:07]}  Re2+ {[%clk 0:00:15]} 35. Kg3 {[%clk 0:00:08]}  Rxa2 {[%clk 0:00:15]} 36. d5 {[%clk 0:00:08]}  Rd2 {[%clk 0:00:14]} 37. Rxa7 {[%clk 0:00:07]}  Rxd5 {[%clk 0:00:14]} 38. Rcc7 {[%clk 0:00:08]}  Rg5+ {[%clk 0:00:14]} 39. Kf2 {[%clk 0:00:08]}  Kg8 {[%clk 0:00:14]} 40. h4 {[%clk 0:00:07]}  Rg6 {[%clk 0:00:14]} 41. h5 {[%clk 0:00:07]}  Rg5 {[%clk 0:00:13]} 42. f4 {[%clk 0:00:07]}  Rg4 {[%clk 0:00:11]} 43. Kf3 {[%clk 0:00:07]}  Rg1 {[%clk 0:00:11]} 44. Kf2 {[%clk 0:00:07]}  Rg4 {[%clk 0:00:10]} 45. Kf3 {[%clk 0:00:07]}  Rg1 {[%clk 0:00:07]} 46. Kf2 {[%clk 0:00:08]}  Rg4 {[%clk 0:00:04]} 1/2-1/2


[Site "https://www.chess.com"]